[Event "EYCC O18-ch 2024"]
[Site "Prague"]
[Date "2024.08.26"]
[Round "5.3"]
[White "Stalmach, Richard"]
[Black "Soderstrom, Adrian"]
[Result "1/2-1/2"]
[ECO "A15"]
[WhiteElo "2443"]
[BlackElo "2318"]
[Annotator "RC"]
[PlyCount "77"]
[EventDate "2024.08.19"]
[EventType "swiss"]
[EventCountry "CZE"]
[SourceTitle "playchess.com"]
[Source "ChessBase"]
[SourceQuality "1"]
[TimeControl "5400+30"]

1. c4 {[%emt 0:00:03]} Nf6 {[%emt 0:00:24]} 2. Nf3 {[%emt 0:00:35]} g6 {[%emt 0:00:18]} 3. Nc3 {[%emt 0:00:35]} Bg7 {[%emt 0:00:18]} 4. e4 {[%emt 0:00:13]} e5 {[%emt 0:00:08]} 5. Nxe5 {[%emt 0:03:10]} O-O {[%emt 0:00:08]} 6. Nf3 {[%emt 0:09:03]} Re8 {[%emt 0:00:08]} 7. d3 {[%emt 0:00:58]} d5 {[%emt 0:00:06]} 8. cxd5 {[%emt 0:01:25]} Nxd5 {[%emt 0:00:04]} 9. Nxd5 {[%emt 0:01:02]} Qxd5 {[%emt 0:00:04]} 10. Be2 {[%emt 0:00:22]} Qd6 {[%emt 0:00:16]} 11. h4 {[%emt 0:07:20]} Bg4 {[%emt 0:10:17]} 12. Bd2 {[%emt 0:23:10]} Bxf3 {[%emt 0:05:47]} 13. gxf3 {[%emt 0:01:16]} Nc6 {[%emt 0:01:53]} 14. Bc3 {[%emt 0:02:31]} Nd4 {[%emt 0:01:47]} 15. Qd2 {[%emt 0:02:26]} h5 {[%emt 0:06:02]} 16. f4 {[%emt 0:05:46]} Bh6 {[%emt 0:03:14]} 17. Bxd4 {[%emt 0:00:08]} Qxd4 {[%emt 0:00:04]} 18. Qc3 {[%emt 0:00:06]} Qxc3+ {[%emt 0:01:39]} 19. bxc3 {[%emt 0:00:17]} Bxf4 {[%emt 0:00:03]} 20. Rb1 {[%emt 0:00:49]} b6 {[%emt 0:00:39]} 21. Bd1 {[%emt 0:02:39]} Rad8 {[%emt 0:00:33]} 22. Ke2 {[%emt 0:00:04]} c5 {[%emt 0:01:01]} 23. Ba4 {[%emt 0:00:56]} Re6 {[%emt 0:00:25]} 24. Bb3 {[%emt 0:00:35]} Red6 {[%emt 0:00:19]} 25. Bc4 {[%emt 0:00:29]} Be5 {[%emt 0:00:24]} 26. Rb3 {[%emt 0:00:41]} Rf6 {[%emt 0:01:06]} 27. a4 {[%emt 0:00:48]} Rdd6 {[%emt 0:00:55]} 28. Rh3 {[%emt 0:02:06]} Rf4 {[%emt 0:01:05]} 29. Ke3 {[%emt 0:02:28]} Rff6 {[%emt 0:01:24]} 30. Bd5 {[%emt 0:01:12]} Bf4+ {[%emt 0:00:52]} 31. Ke2 {[%emt 0:00:08]} Be5 {[%emt 0:00:11]} 32. Ke3 {[%emt 0:05:59]} Bf4+ {[%emt 0:00:07]} 33. Ke2 {[%emt 0:00:57]} Be5 {[%emt 0:00:02]} 34. f3 {[%emt 0:00:47]} Kg7 {[%emt 0:01:28]} 35. Rh1 {[%emt 0:00:07]} Rd7 {[%emt 0:07:50]} 36. Ke3 {[%emt 0:00:46]} Bf4+ {[%emt 0:00:09]} 37. Kf2 {[%emt 0:00:06]} Be5 {[%emt 0:01:11]} 38. Ke2 {[%emt 0:00:33]} Rc7 {[%emt 0:01:13]} 39. Ke3 {[%emt 0:00:33]} 1/2-1/2

[Event "EYCC O18-ch 2024"]
[Site "Prague"]
[Date "2024.08.26"]
[Round "5.3"]
[White "Sachilaru, Alexandru"]
[Black "Gasparyan, Erik R."]
[Result "0-1"]
[ECO "C70"]
[WhiteElo "2255"]
[BlackElo "2350"]
[Annotator "RC"]
[PlyCount "172"]
[EventDate "2024.08.19"]
[EventType "swiss"]
[EventCountry "CZE"]
[SourceTitle "playchess.com"]
[Source "ChessBase"]
[SourceQuality "1"]
[TimeControl "5400+30"]

1. e4 {[%emt 0:00:04]} e5 {[%emt 0:00:36]} 2. Nf3 {[%emt 0:00:15]} Nc6 {[%emt 0:00:09]} 3. Bb5 {[%emt 0:00:14]} a6 {[%emt 0:00:10]} 4. Ba4 {[%emt 0:00:05]} f5 {[%emt 0:00:12]} 5. d3 {[%emt 0:04:24]} fxe4 {[%emt 0:00:20]} 6. dxe4 {[%emt 0:00:05]} Nf6 {[%emt 0:00:14]} 7. O-O {[%emt 0:02:48]} d6 {[%emt 0:00:07]} 8. Nc3 {[%emt 0:22:50]} Be7 {[%emt 0:00:45]} 9. Bg5 {[%emt 0:05:04]} Bg4 {[%emt 0:24:24]} 10. Bxc6+ {[%emt 0:11:59]} bxc6 {[%emt 0:00:07]} 11. Qd3 {[%emt 0:00:11]} O-O {[%emt 0:03:56]} 12. Nd2 {[%emt 0:03:37]} Be6 {[%emt 0:01:31]} 13. f4 {[%emt 0:05:35]} exf4 {[%emt 0:03:07]} 14. Bxf4 {[%emt 0:00:07]} Qb8 {[%emt 0:06:53]} 15. b3 {[%emt 0:14:34]} Ng4 {[%emt 0:02:24]} 16. Kh1 {[%emt 0:03:29]} Qb6 {[%emt 0:09:20]} 17. Bg3 {[%emt 0:01:27]} Bf6 {[%emt 0:00:29]} 18. Rae1 {[%emt 0:03:22]} Qd4 {[%emt 0:09:30]} 19. Qxd4 {[%emt 0:01:39]} Bxd4 {[%emt 0:00:02]} 20. Nd1 {[%emt 0:00:31]} Rae8 {[%emt 0:00:37]} 21. h3 {[%emt 0:01:52]} Nf6 {[%emt 0:02:00]} 22. c3 {[%emt 0:04:47]} Bb6 {[%emt 0:00:45]} 23. Nb2 {[%emt 0:05:37]} Nd7 {[%emt 0:04:01]} 24. Nd3 {[%emt 0:01:39]} Bf7 {[%emt 0:01:20]} 25. Nf3 {[%emt 0:02:16]} Bg6 {[%emt 0:00:09]} 26. Nf2 {[%emt 0:00:59]} Bxf2 {[%emt 0:02:55]} 27. Rxf2 {[%emt 0:00:32]} Rxe4 {[%emt 0:00:06]} 28. Rxe4 {[%emt 0:01:39]} Bxe4 {[%emt 0:00:01]} 29. Nd2 {[%emt 0:00:08]} Rxf2 {[%emt 0:02:22]} 30. Bxf2 {[%emt 0:00:02]} Bd3 {[%emt 0:00:10]} 31. Kg1 {[%emt 0:00:13]} Kf7 {[%emt 0:00:30]} 32. Bg3 {[%emt 0:00:36]} c5 {[%emt 0:01:30]} 33. Kf2 {[%emt 0:00:23]} Ke6 {[%emt 0:01:01]} 34. Ke3 {[%emt 0:00:32]} Bg6 {[%emt 0:00:05]} 35. Bh4 {[%emt 0:02:45]} Nf6 {[%emt 0:03:02]} 36. c4 {[%emt 0:00:34]} c6 {[%emt 0:01:22]} 37. Bf2 {[%emt 0:00:50]} d5 {[%emt 0:00:51]} 38. Ke2 {[%emt 0:00:50]} d4 {[%emt 0:00:19]} 39. Kd1 {[%emt 0:00:49]} Be4 {[%emt 0:01:08]} 40. g3 {[%emt 0:00:30]} Bg2 {[%emt 0:05:30]} 41. h4 {[%emt 0:00:11]} a5 {[%emt 0:01:14]} 42. Ke2 {[%emt 0:00:26]} Be4 {[%emt 0:00:57]} 43. Be1 {[%emt 0:00:54]} Bc2 {[%emt 0:00:05]} 44. Nf3 {[%emt 0:00:26]} a4 {[%emt 0:00:40]} 45. bxa4 {[%emt 0:00:28]} Bxa4 {[%emt 0:00:14]} 46. Ba5 {[%emt 0:00:34]} h6 {[%emt 0:01:28]} 47. Nd2 {[%emt 0:00:25]} Bc2 {[%emt 0:01:26]} 48. Bc7 {[%emt 0:00:21]} Nd7 {[%emt 0:00:26]} 49. a3 {[%emt 0:00:50]} Nf6 {[%emt 0:03:06]} 50. Bb8 {[%emt 0:00:16]} Ke7 {[%emt 0:03:22]} 51. Be5 {[%emt 0:00:33]} Ne8 {[%emt 0:00:48]} 52. Bb8 {[%emt 0:00:34]} Nf6 {[%emt 0:01:11]} 53. Be5 {[%emt 0:00:12]} Nh5 {[%emt 0:00:58]} 54. Bb8 {[%emt 0:00:47]} Ke6 {[%emt 0:00:37]} 55. Kf3 {[%emt 0:00:37]} Nf6 {[%emt 0:00:47]} 56. Ke2 {[%emt 0:00:17]} h5 {[%emt 0:00:39]} 57. Bc7 {[%emt 0:00:19]} Nd7 {[%emt 0:00:18]} 58. Nf3 {[%emt 0:00:53]} Nf6 {[%emt 0:02:02]} 59. Nd2 {[%emt 0:00:13]} Nd7 {[%emt 0:01:52]} 60. Nf3 {[%emt 0:00:13]} Kf5 {[%emt 0:00:26]} 61. Nd2 {[%emt 0:01:03]} Nf6 {[%emt 0:00:10]} 62. Bd6 {[%emt 0:00:25]} Ne4 {[%emt 0:00:05]} 63. Nxe4 {[%emt 0:00:39]} Kxe4 {[%emt 0:00:05]} 64. Bxc5 {[%emt 0:00:17]} Bd3+ {[%emt 0:00:12]} 65. Kd2 {[%emt 0:00:10]} Bxc4 {[%emt 0:00:10]} 66. a4 {[%emt 0:00:09]} g6 {[%emt 0:00:44]} 67. a5 {[%emt 0:00:04]} Kd5 {[%emt 0:00:07]} 68. Bf8 {[%emt 0:00:27]} Bb5 {[%emt 0:00:05]} 69. Kc2 {[%emt 0:00:39]} c5 {[%emt 0:00:45]} 70. Kb3 {[%emt 0:00:38]} Bc4+ {[%emt 0:01:32]} 71. Kc2 {[%emt 0:00:28]} Ba6 {[%emt 0:00:20]} 72. Kb3 {[%emt 0:00:22]} c4+ {[%emt 0:00:30]} 73. Kb4 {[%emt 0:00:28]} Ke4 {[%emt 0:01:21]} 74. Bg7 {[%emt 0:00:50]} c3 {[%emt 0:00:53]} 75. Kb3 {[%emt 0:01:04]} Kd3 {[%emt 0:00:30]} 76. Bf6 {[%emt 0:00:50]} Bb7 {[%emt 0:00:12]} 77. Be5 {[%emt 0:00:23]} Kd2 {[%emt 0:02:25]} 78. Kc4 {[%emt 0:00:25]} d3 {[%emt 0:00:47]} 79. Bxc3+ {[%emt 0:00:13]} Kc2 {[%emt 0:00:04]} 80. Kd4 {[%emt 0:00:22]} d2 {[%emt 0:00:50]} 81. Bxd2 {[%emt 0:00:03]} Kxd2 {[%emt 0:00:05]} 82. Ke5 {[%emt 0:00:05]} Ke3 {[%emt 0:00:29]} 83. Kf6 {[%emt 0:00:03]} Be4 {[%emt 0:00:22]} 84. a6 {[%emt 0:00:33]} Kf3 {[%emt 0:00:15]} 85. a7 {[%emt 0:00:02]} Kxg3 {[%emt 0:00:05]} 86. Kg5 {[%emt 0:00:04]} Ba8 {[%emt 0:00:06]} 0-1

[Event "EYCC O18-ch 2024"]
[Site "Prague"]
[Date "2024.08.26"]
[Round "5.4"]
[White "Levin, Guy"]
[Black "Koutlas, Nikolaos"]
[Result "1/2-1/2"]
[ECO "D60"]
[WhiteElo "2436"]
[BlackElo "2322"]
[Annotator "RC"]
[PlyCount "110"]
[EventDate "2024.08.19"]
[EventType "swiss"]
[EventCountry "CZE"]
[SourceTitle "playchess.com"]
[Source "ChessBase"]
[SourceQuality "1"]
[TimeControl "5400+30"]

1. d4 {[%emt 0:00:09]} e6 {[%emt 0:00:39]} 2. c4 {[%emt 0:00:11]} Nf6 {[%emt 0:00:08]} 3. Nc3 {[%emt 0:00:06]} d5 {[%emt 0:00:37]} 4. Bg5 {[%emt 0:00:18]} Be7 {[%emt 0:00:10]} 5. e3 {[%emt 0:00:13]} O-O {[%emt 0:00:14]} 6. Nf3 {[%emt 0:00:27]} Nbd7 {[%emt 0:08:13]} 7. h3 {[%emt 0:05:29]} c6 {[%emt 0:02:33]} 8. Qc2 {[%emt 0:00:22]} dxc4 {[%emt 0:07:32]} 9. Bxc4 {[%emt 0:01:09]} h6 {[%emt 0:00:04]} 10. Bf4 {[%emt 0:10:13]} b5 {[%emt 0:13:12]} 11. Be2 {[%emt 0:09:48]} a6 {[%emt 0:03:34]} 12. O-O {[%emt 0:00:40]} c5 {[%emt 0:00:20]} 13. dxc5 {[%emt 0:08:03]} Nxc5 {[%emt 0:02:52]} 14. Rfd1 {[%emt 0:08:02]} Qb6 {[%emt 0:03:10]} 15. b4 {[%emt 0:00:06]} Ncd7 {[%emt 0:01:44]} 16. a4 {[%emt 0:00:14]} Bb7 {[%emt 0:02:43]} 17. axb5 {[%emt 0:03:40]} axb5 {[%emt 0:00:35]} 18. Rxa8 {[%emt 0:01:28]} Bxa8 {[%emt 0:01:31]} 19. Bxb5 {[%emt 0:07:03]} Bxf3 {[%emt 0:08:01]} 20. gxf3 {[%emt 0:00:10]} e5 {[%emt 0:01:25]} 21. Bg3 {[%emt 0:01:45]} Bxb4 {[%emt 0:08:27]} 22. Bxd7 {[%emt 0:05:40]} Qc7 {[%emt 0:00:13]} 23. Bb5 {[%emt 0:08:54]} Qxc3 {[%emt 0:04:11]} 24. Qf5 {[%emt 0:00:16]} e4 {[%emt 0:02:17]} 25. fxe4 {[%emt 0:03:47]} Qc2 {[%emt 0:00:05]} 26. Rd4 {[%emt 0:03:02]} Bc5 {[%emt 0:00:06]} 27. Rc4 {[%emt 0:01:25]} Qb1+ {[%emt 0:00:03]} 28. Kh2 {[%emt 0:04:15]} Qxb5 {[%emt 0:00:28]} 29. Rxc5 {[%emt 0:01:14]} Qd3 {[%emt 0:06:44]} 30. Re5 {[%emt 0:00:15]} Ra8 {[%emt 0:04:08]} 31. Bh4 {[%emt 0:00:42]} Qd6 {[%emt 0:00:04]} 32. Kg2 {[%emt 0:00:41]} Qc6 {[%emt 0:00:49]} 33. Bxf6 {[%emt 0:01:56]} Qxf6 {[%emt 0:00:04]} 34. Qxf6 {[%emt 0:00:06]} gxf6 {[%emt 0:00:03]} 35. Rc5 {[%emt 0:02:00]} Kg7 {[%emt 0:00:32]} 36. h4 {[%emt 0:00:55]} Ra1 {[%emt 0:01:12]} 37. h5 {[%emt 0:00:23]} Rb1 {[%emt 0:00:14]} 38. e5 {[%emt 0:01:47]} fxe5 {[%emt 0:00:09]} 39. Rxe5 {[%emt 0:00:02]} Kf6 {[%emt 0:00:21]} 40. f4 {[%emt 0:00:02]} Ra1 {[%emt 0:01:16]} 41. Rb5 {[%emt 0:00:19]} Ra2+ {[%emt 0:00:30]} 42. Kf3 {[%emt 0:00:11]} Ra1 {[%emt 0:00:03]} 43. Rb6+ {[%emt 0:00:40]} Kg7 {[%emt 0:00:03]} 44. Rb5 Rf1+ {[%emt 0:00:36]} 45. Ke4 {[%emt 0:03:28]} Rh1 {[%emt 0:00:04]} 46. Rc5 {[%emt 0:00:53]} Rh2 {[%emt 0:00:46]} 47. Kf3 {[%emt 0:01:12]} Rh3+ {[%emt 0:01:35]} 48. Kf2 {[%emt 0:00:10]} Rh2+ {[%emt 0:00:16]} 49. Kg3 {[%emt 0:00:07]} Rh1 {[%emt 0:00:04]} 50. e4 {[%emt 0:00:08]} Rg1+ {[%emt 0:01:26]} 51. Kf2 {[%emt 0:00:22]} Rh1 {[%emt 0:00:25]} 52. Kg2 {[%emt 0:00:08]} Rh4 {[%emt 0:00:14]} 53. Rf5 {[%emt 0:02:02]} Rg4+ {[%emt 0:00:19]} 54. Kh2 {[%emt 0:00:20]} Rh4+ {[%emt 0:00:06]} 55. Kg2 {[%emt 0:00:04]} Rg4+ {[%emt 0:00:03]} 1/2-1/2

[Event "EYCC O18-ch 2024"]
[Site "Prague"]
[Date "2024.08.26"]
[Round "5.4"]
[White "Baranciuc, Alexandr"]
[Black "Xhembulla, Aleksander"]
[Result "0-1"]
[ECO "A45"]
[WhiteElo "2332"]
[BlackElo "2201"]
[Annotator "RC"]
[PlyCount "92"]
[EventDate "2024.08.19"]
[EventType "swiss"]
[EventCountry "CZE"]
[SourceTitle "playchess.com"]
[Source "ChessBase"]
[SourceQuality "1"]
[TimeControl "5400+30"]

1. d4 {[%emt 0:00:16]} Nf6 {[%emt 0:00:06]} 2. Nc3 {[%emt 0:00:04]} d5 {[%emt 0:00:09]} 3. Bf4 {[%emt 0:00:06]} e6 {[%emt 0:00:38]} 4. Nb5 {[%emt 0:00:04]} Bb4+ {[%emt 0:00:04]} 5. c3 {[%emt 0:00:06]} Ba5 {[%emt 0:00:03]} 6. e3 {[%emt 0:00:09]} a6 {[%emt 0:01:11]} 7. Na3 {[%emt 0:00:06]} Nbd7 {[%emt 0:00:24]} 8. Nf3 {[%emt 0:00:27]} Qe7 {[%emt 0:00:47]} 9. Nb1 {[%emt 0:01:16]} Nh5 {[%emt 0:00:30]} 10. Bg5 {[%emt 0:07:22]} f6 {[%emt 0:00:13]} 11. Bh4 {[%emt 0:00:01]} g6 {[%emt 0:02:48]} 12. g4 {[%emt 0:12:44]} Ng7 {[%emt 0:00:08]} 13. g5 {[%emt 0:00:06]} f5 {[%emt 0:22:35]} 14. Nbd2 {[%emt 0:11:05]} O-O {[%emt 0:17:26]} 15. Be2 {[%emt 0:07:16]} c6 {[%emt 0:11:10]} 16. Bg3 {[%emt 0:07:30]} Nh5 {[%emt 0:00:28]} 17. Be5 {[%emt 0:00:16]} Nxe5 {[%emt 0:00:38]} 18. Nxe5 {[%emt 0:00:15]} Ng7 {[%emt 0:11:39]} 19. f4 {[%emt 0:00:13]} Bc7 {[%emt 0:00:27]} 20. Nd3 {[%emt 0:11:53]} h5 {[%emt 0:03:03]} 21. c4 {[%emt 0:01:58]} dxc4 {[%emt 0:02:09]} 22. Nxc4 {[%emt 0:00:09]} Rd8 {[%emt 0:00:11]} 23. Qb3 {[%emt 0:03:40]} a5 {[%emt 0:02:17]} 24. Kf2 {[%emt 0:02:59]} Kh7 {[%emt 0:00:28]} 25. Rhc1 {[%emt 0:00:39]} Ra7 {[%emt 0:05:04]} 26. Bf3 {[%emt 0:06:12]} Bd7 {[%emt 0:00:59]} 27. Qc3 {[%emt 0:00:09]} Ne8 {[%emt 0:01:06]} 28. a3 {[%emt 0:04:07]} Nd6 {[%emt 0:00:25]} 29. Nce5 {[%emt 0:03:36]} Be8 {[%emt 0:00:53]} 30. Qc2 {[%emt 0:00:49]} Raa8 {[%emt 0:01:13]} 31. Qb3 {[%emt 0:00:49]} a4 {[%emt 0:04:42]} 32. Qc2 {[%emt 0:00:30]} Nf7 {[%emt 0:01:12]} 33. Nxf7 {[%emt 0:00:51]} Bxf7 {[%emt 0:00:39]} 34. Nc5 {[%emt 0:00:37]} e5 {[%emt 0:00:58]} 35. dxe5 {[%emt 0:00:05]} Bxe5 {[%emt 0:00:04]} 36. fxe5 {[%emt 0:04:24]} Qxe5 {[%emt 0:00:01]} 37. Bg2 {[%emt 0:04:19]} Bd5 {[%emt 0:05:19]} 38. Nd3 {[%emt 0:03:55]} Qxh2 {[%emt 0:00:07]} 39. Nf4 {[%emt 0:00:01]} Bxg2 40. Nxg2 {[%emt 0:00:01]} f4 {[%emt 0:03:43]} 41. exf4 {[%emt 0:05:53]} Rd4 {[%emt 0:00:03]} 42. Ke3 {[%emt 0:01:40]} Rad8 {[%emt 0:00:33]} 43. Rg1 {[%emt 0:02:12]} Qg3+ {[%emt 0:01:49]} 44. Ke2 {[%emt 0:00:05]} Re8+ {[%emt 0:00:06]} 45. Kf1 {[%emt 0:00:05]} Qf3+ {[%emt 0:00:03]} 46. Qf2 {[%emt 0:00:07]} Qd3+ {[%emt 0:00:03]} 0-1

[Event "EYCC O18-ch 2024"]
[Site "Prague"]
[Date "2024.08.26"]
[Round "5.5"]
[White "Garcia Fernandez, Victor"]
[Black "Pasztor, Balazs"]
[Result "0-1"]
[ECO "D35"]
[WhiteElo "2313"]
[BlackElo "2402"]
[Annotator "RC"]
[PlyCount "70"]
[EventDate "2024.08.19"]
[EventType "swiss"]
[EventCountry "CZE"]
[SourceTitle "playchess.com"]
[Source "ChessBase"]
[SourceQuality "1"]
[TimeControl "5400+30"]

1. d4 {[%emt 0:00:03]} d5 {[%emt 0:00:06]} 2. c4 {[%emt 0:00:09]} e6 {[%emt 0:00:07]} 3. Nc3 {[%emt 0:00:06]} Nf6 {[%emt 0:00:06]} 4. cxd5 {[%emt 0:00:24]} Nxd5 {[%emt 0:00:08]} 5. e4 {[%emt 0:00:45]} Nxc3 {[%emt 0:00:06]} 6. bxc3 {[%emt 0:00:04]} c5 {[%emt 0:00:07]} 7. Rb1 Be7 {[%emt 0:00:13]} 8. Nf3 {[%emt 0:12:28]} O-O {[%emt 0:00:10]} 9. Bd3 {[%emt 0:01:34]} cxd4 {[%emt 0:00:50]} 10. cxd4 {[%emt 0:00:08]} Nc6 {[%emt 0:00:13]} 11. e5 {[%emt 0:02:52]} Nb4 {[%emt 0:02:19]} 12. Be4 {[%emt 0:01:22]} Bd7 {[%emt 0:01:06]} 13. Bd2 {[%emt 0:06:34]} a5 {[%emt 0:10:19]} 14. O-O {[%emt 0:05:15]} Bc6 {[%emt 0:03:04]} 15. Bxc6 {[%emt 0:01:39]} bxc6 {[%emt 0:02:20]} 16. a3 {[%emt 0:18:16]} Nd5 {[%emt 0:02:48]} 17. Qa4 {[%emt 0:01:44]} Qc7 {[%emt 0:09:49]} 18. Rfc1 {[%emt 0:02:02]} Rfc8 {[%emt 0:00:29]} 19. Rc2 {[%emt 0:05:52]} Nb6 {[%emt 0:11:05]} 20. Qb3 {[%emt 0:00:18]} a4 {[%emt 0:00:24]} 21. Qa2 {[%emt 0:05:35]} Nd5 {[%emt 0:02:05]} 22. Ne1 {[%emt 0:04:50]} Qa7 {[%emt 0:05:31]} 23. Rc4 {[%emt 0:01:24]} c5 {[%emt 0:06:08]} 24. dxc5 {[%emt 0:00:22]} Rxc5 {[%emt 0:00:42]} 25. Rbc1 {[%emt 0:09:49]} Rac8 {[%emt 0:07:05]} 26. Nd3 {[%emt 0:03:26]} Rxc4 {[%emt 0:02:05]} 27. Rxc4 {[%emt 0:00:01]} Rxc4 {[%emt 0:01:05]} 28. Qxc4 {[%emt 0:00:02]} Bxa3 {[%emt 0:01:39]} 29. Bb4 {[%emt 0:08:00]} Bxb4 {[%emt 0:00:41]} 30. Nxb4 {[%emt 0:00:03]} Qa8 {[%emt 0:01:44]} 31. Nxd5 {[%emt 0:01:38]} exd5 {[%emt 0:00:12]} 32. Qa2 {[%emt 0:00:29]} a3 {[%emt 0:00:12]} 33. h4 {[%emt 0:00:29]} h6 {[%emt 0:00:30]} 34. h5 {[%emt 0:00:24]} Kh8 {[%emt 0:01:16]} 35. g3 {[%emt 0:00:58]} d4 {[%emt 0:01:02]} 0-1

[Event "EYCC O18-ch 2024"]
[Site "Prague"]
[Date "2024.08.26"]
[Round "5.5"]
[White "Kasipour Azbari, Seyed Arvin"]
[Black "Slagboom, Leandro"]
[Result "0-1"]
[ECO "C02"]
[WhiteElo "2212"]
[BlackElo "2331"]
[Annotator "RC"]
[PlyCount "56"]
[EventDate "2024.08.19"]
[EventType "swiss"]
[EventCountry "CZE"]
[SourceTitle "playchess.com"]
[Source "ChessBase"]
[SourceQuality "1"]
[TimeControl "5400+30"]

1. e4 {[%emt 0:00:25]} e6 {[%emt 0:00:08]} 2. d4 {[%emt 0:00:12]} d5 {[%emt 0:00:05]} 3. e5 {[%emt 0:00:07]} c5 {[%emt 0:00:05]} 4. c3 {[%emt 0:00:07]} Nc6 {[%emt 0:00:05]} 5. Nf3 {[%emt 0:00:08]} Nge7 {[%emt 0:00:07]} 6. Na3 {[%emt 0:06:33]} Bd7 {[%emt 0:00:38]} 7. Nc2 {[%emt 0:04:02]} Qa5 {[%emt 0:01:01]} 8. dxc5 {[%emt 0:10:48]} Qc7 {[%emt 0:03:01]} 9. Be2 {[%emt 0:08:35]} Nxe5 {[%emt 0:11:32]} 10. Nxe5 {[%emt 0:00:16]} Qxe5 {[%emt 0:00:05]} 11. Nd4 {[%emt 0:07:09]} Qc7 {[%emt 0:07:30]} 12. b4 {[%emt 0:01:04]} a6 {[%emt 0:01:39]} 13. O-O {[%emt 0:06:39]} g6 {[%emt 0:01:03]} 14. Bg5 {[%emt 0:05:41]} Bg7 {[%emt 0:02:24]} 15. Bxe7 {[%emt 0:09:07]} Kxe7 {[%emt 0:00:06]} 16. Re1 {[%emt 0:05:10]} Rhe8 {[%emt 0:02:23]} 17. Qb3 {[%emt 0:01:41]} Kf8 {[%emt 0:01:47]} 18. Rad1 {[%emt 0:02:14]} b6 {[%emt 0:08:06]} 19. cxb6 {[%emt 0:04:56]} Qxb6 {[%emt 0:00:06]} 20. a4 {[%emt 0:03:03]} Rec8 {[%emt 0:06:59]} 21. a5 {[%emt 0:04:55]} Qc7 {[%emt 0:01:10]} 22. Rd3 {[%emt 0:06:07]} e5 {[%emt 0:04:05]} 23. Nc2 {[%emt 0:01:37]} d4 {[%emt 0:22:43]} 24. Bf3 {[%emt 0:04:53]} Bf5 {[%emt 0:01:23]} 25. cxd4 {[%emt 0:04:00]} Qxc2 {[%emt 0:01:01]} 26. Qxc2 {[%emt 0:02:43]} Rxc2 {[%emt 0:00:05]} 27. Bxa8 {[%emt 0:01:16]} Bxd3 {[%emt 0:00:05]} 28. dxe5 {[%emt 0:00:13]} Bxe5 {[%emt 0:00:33]} 0-1

[Event "EYCC O18-ch 2024"]
[Site "Prague"]
[Date "2024.08.26"]
[Round "5.6"]
[White "Hrbek, Stepan"]
[Black "Hak, David"]
[Result "1-0"]
[ECO "B31"]
[WhiteElo "2414"]
[BlackElo "2239"]
[Annotator "RC"]
[PlyCount "94"]
[EventDate "2024.08.19"]
[EventType "swiss"]
[EventCountry "CZE"]
[SourceTitle "playchess.com"]
[Source "ChessBase"]
[SourceQuality "1"]
[TimeControl "5400+30"]

1. e4 {[%emt 0:00:12]} c5 {[%emt 0:00:04]} 2. Nf3 {[%emt 0:00:12]} Nc6 {[%emt 0:00:05]} 3. Bb5 {[%emt 0:00:14]} g6 {[%emt 0:00:05]} 4. Bxc6 {[%emt 0:00:13]} dxc6 {[%emt 0:00:09]} 5. d3 {[%emt 0:00:14]} Bg7 {[%emt 0:00:12]} 6. a4 {[%emt 0:00:27]} Nf6 {[%emt 0:02:38]} 7. a5 {[%emt 0:00:27]} Nd7 {[%emt 0:05:20]} 8. Nc3 {[%emt 0:03:09]} e5 {[%emt 0:02:16]} 9. Bg5 {[%emt 0:15:07]} f6 {[%emt 0:04:21]} 10. Be3 {[%emt 0:00:10]} Qe7 {[%emt 0:03:05]} 11. Nd2 {[%emt 0:06:53]} O-O {[%emt 0:10:55]} 12. O-O {[%emt 0:03:38]} f5 {[%emt 0:03:43]} 13. exf5 {[%emt 0:13:09]} gxf5 {[%emt 0:00:16]} 14. f4 {[%emt 0:00:52]} Re8 {[%emt 0:15:25]} 15. Kh1 {[%emt 0:05:20]} exf4 {[%emt 0:10:43]} 16. Bxf4 {[%emt 0:00:33]} Nf6 {[%emt 0:00:34]} 17. Nc4 {[%emt 0:09:40]} Nd5 {[%emt 0:03:05]} 18. Nxd5 {[%emt 0:01:50]} cxd5 {[%emt 0:00:04]} 19. Nd6 {[%emt 0:00:12]} Rd8 {[%emt 0:02:02]} 20. Re1 {[%emt 0:01:07]} Qf6 {[%emt 0:03:38]} 21. Ne8 {[%emt 0:01:40]} Qh4 {[%emt 0:12:16]} 22. Qd2 {[%emt 0:04:54]} Bxb2 {[%emt 0:13:04]} 23. Rab1 {[%emt 0:08:20]} Bd7 {[%emt 0:06:16]} 24. Nc7 {[%emt 0:00:26]} Bg7 {[%emt 0:01:39]} 25. Nxa8 {[%emt 0:00:39]} Rxa8 {[%emt 0:00:01]} 26. Rxb7 {[%emt 0:00:33]} Ba4 {[%emt 0:00:51]} 27. Ree7 {[%emt 0:05:54]} Bf8 {[%emt 0:00:33]} 28. Re3 {[%emt 0:04:50]} Re8 {[%emt 0:00:01]} 29. Rxe8 {[%emt 0:05:15]} Bxe8 {[%emt 0:00:02]} 30. Qe3 {[%emt 0:00:12]} Qh5 {[%emt 0:01:06]} 31. h3 {[%emt 0:02:54]} d4 {[%emt 0:00:36]} 32. Qe5 {[%emt 0:02:47]} Qg6 {[%emt 0:00:01]} 33. Qd5+ {[%emt 0:01:48]} Bf7 {[%emt 0:00:06]} 34. Qd8 {[%emt 0:00:29]} Qg7 {[%emt 0:01:44]} 35. Bd6 {[%emt 0:00:55]} Qh6 {[%emt 0:00:25]} 36. Rb8 {[%emt 0:00:16]} Be8 {[%emt 0:00:02]} 37. Qxe8 {[%emt 0:02:09]} Qxd6 {[%emt 0:00:03]} 38. Rb7 {[%emt 0:00:42]} Qh6 {[%emt 0:00:14]} 39. Qf7+ {[%emt 0:00:12]} Kh8 {[%emt 0:00:01]} 40. Rb1 {[%emt 0:00:15]} Qd6 {[%emt 0:02:04]} 41. Re1 {[%emt 0:00:25]} Qh6 {[%emt 0:00:44]} 42. Qxf5 {[%emt 0:00:13]} Kg8 {[%emt 0:00:09]} 43. Qe6+ {[%emt 0:00:37]} Kg7 {[%emt 0:00:10]} 44. Qxh6+ {[%emt 0:00:17]} Kxh6 {[%emt 0:00:01]} 45. Re6+ {[%emt 0:00:28]} Kg5 {[%emt 0:00:01]} 46. Ra6 {[%emt 0:00:06]} c4 {[%emt 0:00:49]} 47. Rxa7 {[%emt 0:00:48]} Bb4 {[%emt 0:00:18]} 1-0